{"text_format":"1","workbook":"xlsx","n_sheets":13,"sheets":["1. Forside","2. Samlet prisloft","3. Driftsomkostninger","4. Historiske investeringer","5. Gennemførte investeringer","6. Korrektion investeringer","7. Planlagte investeringer","8. 1-1 omkostninger","9. Miljø- og servicemål","10. Klimatilpasning","11. Nettofinansielle poster","12. Over- eller underdækning","13. Kontrol med indtægtsrammen"],"not_rendered":{"charts":0,"images":0,"macros":1,"external_links":0,"defined_names":0,"comments":0,"pivot_tables":0},"unopened":[],"bounds":{"document_bytes":16777216,"sheet_cells":100000,"rows_first":2000,"rows_last":500,"rows_between":2000,"halvings":0,"cell_chars":16384,"cell_head_chars":4096},"cells_cut":0,"cells_raw":0,"read":"whole","date_system":"1900"}

{"sheet":"1. Forside","index":0,"n_rows":27,"n_cols":4,"rows_kept":27,"cut":false,"hidden":false,"merged":[[21,3,21,5],[20,3,20,5],[19,3,19,5],[18,3,18,5],[7,3,7,5],[12,3,12,5],[15,3,15,5],[16,3,16,5],[17,3,17,5],[26,3,26,5],[25,3,25,5],[24,3,24,5],[23,3,23,5],[22,3,22,5]]}
["Mariagerfjord spildevand A/S"]
[]
[]
[]
[]
[]
[]
[null,null,null,"Bilag A"]
[]
[]
[]
[]
[null,null,null,"Indholdsfortegnelse"]
[]
[]
[null,null,"Fane nr. 2","Samlet prisloft "]
[null,null,"Fane nr. 3","Driftsomkostninger"]
[null,null,"Fane nr. 4","Historiske investeringer "]
[null,null,"Fane nr. 5","Gennemførte investeringer"]
[null,null,"Fane nr. 6","Korrektion investeringer"]
[null,null,"Fane nr. 7","Planlagte investeringer"]
[null,null,"Fane nr. 8","1:1 omkostninger"]
[null,null,"Fane nr. 9","Miljø- og servicemål"]
[null,null,"Fane nr. 10","Klimatilpasning"]
[null,null,"Fane nr. 11","Nettofinansielle poster"]
[null,null,"Fane nr. 12","Over- eller underdækning"]
[null,null,"Fane nr. 13","Kontrol med indtægtsrammen og oversigt over ekstraordinære effektiviseringsgevinster"]

{"sheet":"2. Samlet prisloft","index":1,"n_rows":38,"n_cols":6,"rows_kept":38,"cut":false,"hidden":false,"merged":[[3,1,3,5]]}
[{"$f":"'1. Forside'!A1","v":"Mariagerfjord spildevand A/S"}]
[]
[]
[null,"Fane 2. Samlet prisloft for 2015"]
[]
[null,"Driftsomkostninger"]
[null,"Driftsomkostninger i prisloftet for 2014",{"$f":"'3. Driftsomkostninger'!C20","v":31226834.125421159},"kr."]
[null,"Bortfald af væsentlige omkostninger",{"$f":"-'3. Driftsomkostninger'!C16","v":0},"kr."]
[null,"Korrektion for prisudviklingen 2014-2015",{"$f":"'3. Driftsomkostninger'!C22","v":24981.467300336928},"kr."]
[null,"Forhøjelse til effektivt niveau iht. benchmarkingen",{"$f":"'3. Driftsomkostninger'!C28","v":0},"kr."]
[null,"Korrektion for generelt effektiviseringskrav",{"$f":"-'3. Driftsomkostninger'!C34","v":-137398.07015185311},"kr."]
[null,"Korrektion for individuelt effektiviseringskrav",{"$f":"-'3. Driftsomkostninger'!C43","v":-814239.69982035679},"kr."]
[null,"Driftsomkostninger i alt",{"$f":"SUM(C7:C12)","v":30300177.822749283},"kr.",{"$f":"C13","v":30300177.822749283}," kr."]
[null,"Investeringer"]
[null,"Tillæg for historiske investeringer",{"$f":"'4. Historiske investeringer'!C9","v":51355823.691938452},"kr."]
[null,"Tillæg for gennemførte investeringer i 2011-2013",{"$f":"'5. Gennemførte investeringer'!F48","v":7695609.1066666683},"kr."]
[null,"Korrektion af tillæg for planlagte investeringer vedrørende 2013  ",{"$f":"'6. Korrektion investeringer'!C10","v":749363.92666666955},"kr."]
[null,"Tillæg for planlagte investeringer i 2014 og 2015",{"$f":"'7. Planlagte investeringer'!F25","v":3699666.666666666},"kr."]
[null,"Investeringstillæg i alt",{"$f":"SUM(C15:C18)","v":63500463.391938455},"kr.",{"$f":"C19","v":63500463.391938455}," kr."]
[null,"Øvrige omkostninger mv."]
[null,"Tillæg for 1:1 omkostninger i 2015",{"$f":"'8. 1-1 omkostninger'!C11","v":1158000},"kr."]
[null,"Tillæg vedr. revisorerklæringer og DANVA/FVD-kontingent",{"$f":"'8. 1-1 omkostninger'!C19","v":130000},"kr."]
[null,"Korrektion ift. faktiske 1:1 omkostninger i 2013",{"$f":"'8. 1-1 omkostninger'!C25","v":629660},"kr."]
[null,"Tillæg for driftsomkostninger til miljø- og servicemål i 2015",{"$f":"'9. Miljø- og servicemål'!C8","v":150000},"kr."]
[null,"Korrektion ift. faktiske driftsomkostninger til miljø- og servicemål i 2013",{"$f":"'9. Miljø- og servicemål'!C15","v":92475},"kr."]
[null,"Tillæg for driftsomkostninger til medfinansiering af klimatilpasningsprojekter i 2015",{"$f":"'10. Klimatilpasning'!C9","v":0},"kr."]
[null,"Korrektion ift. faktiske omkostninger til medfinansiering af klimatilpasningsprojekter i 2013",{"$f":"'10. Klimatilpasning'!C16","v":0},"kr."]
[null,"Tillæg/fradrag for nettofinansielle poster i 2015",{"$f":"'11. Nettofinansielle poster'!C9","v":14300000},"kr."]
[null,"Korrektion ift. faktiske nettofinansielle poster i 2013",{"$f":"'11. Nettofinansielle poster'!C16","v":-4390651},"kr."]
[null,"Øvrige omkostninger mv. i alt",{"$f":"SUM(C21:C29)","v":12069484},"kr.",{"$f":"C30","v":12069484}," kr."]
[null,"Historisk over- eller underdækning"]
[null,"Tillæg/fradrag for over- eller underdækning til og med 2010",{"$f":"'12. Over- eller underdækning'!C11","v":-5373080.4973544972},"kr.",{"$f":"C32","v":-5373080.4973544972}," kr."]
[null,"Korrektion i forhold til tidligere indtægtsramme "]
[null,"Korrektion for overholdelse af indtægtsramme i prisloft 2013",{"$f":"'13. Kontrol med indtægtsrammen'!E27","v":2301519.9782032296},"kr.",{"$f":"C34","v":2301519.9782032296}," kr."]
[null,"Samlet prisloft"]
[null,"Indtægtsramme i 2015 ",null,null,{"$f":"SUM(E13:E34)","v":102798564.69553646}," kr."]
[null,"Debiteret vandmængde i 2013",null,null,1909422," m3"]
[null,"Prisloft 2015",null,null,{"$f":"E36/E37","v":53.837530255510025}," kr./m3"]

{"sheet":"3. Driftsomkostninger","index":2,"n_rows":43,"n_cols":4,"rows_kept":43,"cut":false,"hidden":false,"merged":[[3,1,3,3]]}
[{"$f":"'1. Forside'!A1","v":"Mariagerfjord spildevand A/S"}]
[]
[]
[null,"Fane 3. Driftsomkostninger "]
[]
[null,"Driftsomkostningerne i prisloftet for 2014"]
[null,"Korrigerede driftsomkostninger i prisloftet for 2013 (DOiPL 2013)",32154172.634501033,"kr."]
[null,"Prisfremskrivning 1,5 pct.",{"$f":"0.015*SUM(C7:C7)","v":482312.58951751544},"kr."]
[null,"Generelt effektiviseringskrav (0 pct.)",0,"kr."]
[null,"Individuelt effektiviseringskrav ",-1409651.0985973901,"kr."]
[null,"Driftsomkostningerne i prisloftet for 2014 (DOiPL 2014)",{"$f":"SUM(C7:C10)","v":31226834.125421159},"kr."]
[]
[]
[null,"Korrektion for forventet bortfald af væsentlige omkostninger"]
[null,"Selskabets indberettede bortfald af væsentlige omkostninger inden 2015",0,"kr."]
[null,"Korrektion for forventet bortfald ",{"$f":"SUM(C15:C15)","v":0},"kr."]
[]
[]
[null,"Korrektion for prisudviklingen fra 2014-2015"]
[null,"Driftsomkostningerne i prisloftet for 2014",{"$f":"C11-C16","v":31226834.125421159},"kr."]
[null,"Prisudvikling 2014 - 2015 ",0.08,"pct."]
[null,"Korrektion for prisudvikling",{"$f":"C20*(C21/100)","v":24981.467300336928},"kr."]
[]
[]
[null,"Eventuel forhøjelse til effektivt niveau iht. benchmarkingen"]
[null,"Selskabets effektive driftsomkostninger iht. benchmarkingen",23772988.819683127,"kr."]
[null,"Selskabets pristalskorrigerede driftsomkostninger i 2015-niveau",{"$f":"C20+C22","v":31251815.592721496},"kr."]
[null,"Eventuel forhøjelse til effektivt niveau",{"$f":"IF(C27>C26,0,C26-C27)","v":0},"kr."]
[]
[]
[null,"Korrektion for generelt effektiviseringskrav"]
[null,"Driftsomkostningerne i prisloftet for 2014",{"$f":"C20","v":31226834.125421159},"kr. "]
[null,"Generelt effektiviseringskrav ",0.44,"pct."]
[null,"Endeligt generelt effektiviseringskrav",{"$f":"C32*(C33/100)","v":137398.07015185311},"kr. "]
[]
[]
[null,"Korrektion for individuelt effektiviseringskrav"]
[null,"Rå effektiviseringspotentiale",7453845.3057380309,"kr."]
[null,"Effektiviseringspotentiale efter eventuel korrektion for særlige forhold",7453845.3057380309,"kr."]
[null,"Effektiviseringspotentiale efter forsigtighedshensyn",3256958.7992814272,"kr."]
[null,"Effektiviseringspotentiale efter eventuel korrektion for sammensætning af signifikante costdrivere",3256958.7992814272,"kr. "]
[null,"Umiddelbart effektiviseringskrav",814239.69982035679,"kr."]
[null,"Endeligt individuelt effektiviseringskrav",{"$f":"IF(C42>0.05*C20,0.05*C20,IF(C42<0.01*C20,0,C42))","v":814239.69982035679},"kr. "]

{"sheet":"4. Historiske investeringer","index":3,"n_rows":9,"n_cols":4,"rows_kept":9,"cut":false,"hidden":false,"merged":[[3,1,3,2]]}
[{"$f":"'3. Driftsomkostninger'!A1","v":"Mariagerfjord spildevand A/S"}]
[]
[]
[null,"Fane 4. Historiske investeringer "]
[]
[null,"Tillæg for historiske investeringer "]
[null,"Værdi af selskabets materielle anlægsaktiver pr. 1. januar 2010",2024589901.4358182,"kr."]
[null,"Den årlige standardafskrivning på de materielle anlægsaktiver iht. POLKA",51355823.691938452,"kr."]
[null,"Tillæg i alt i 2015",{"$f":"C8","v":51355823.691938452},"kr."]

{"sheet":"5. Gennemførte investeringer","index":4,"n_rows":48,"n_cols":7,"rows_kept":48,"cut":false,"hidden":false,"merged":[[3,1,3,5],[6,5,6,6]]}
[{"$f":"'4. Historiske investeringer'!A1","v":"Mariagerfjord spildevand A/S"}]
[]
[]
[null,"Fane 5. Gennemførte investeringer i 2010 - 2013 "]
[]
[null,"Tillæg for gennemførte investeringer i 2013"]
[null," Beskrivelse af investeringen   ","Årstal ","Std. levetid (år)   "," Anskaffelses-pris (kr.)","Afskrivning "]
[null,"Mindre renseanlæg < 5.000 PE uden mulighed for opdeling",2013,40,70666,{"$f":"E8/D8","v":1766.65},"kr."]
[null,"Indløb med riste, Konstruktioner",2013,60,8832727,{"$f":"E9/D9","v":147212.11666666667},"kr."]
[null,"Indløb med riste, Mek/EL",2013,20,11040909,552045.44999999995,"kr."]
[null,"Indløb med riste, SRO",2013,10,2208182,220818.2,"kr."]
[null,"Sand- og fedtfang, Kontruktioner",2013,60,4416364,73606.066666666666,"kr."]
[null,"Sand- og fedtfang, Mek/EL",2013,20,5520454,276022.7,"kr."]
[null,"Sand- og fedtfang, SRO",2013,10,1104091,110409.1,"kr."]
[null,"Beluftningstanke, Konstruktioner",2013,60,11040909,184015.15,"kr."]
[null,"Beluftningstanke, Mek/EL",2013,20,13801136,690056.8,"kr."]
[null,"Beluftningstanke, SRO",2013,10,2760227,276022.7,"kr."]
[null,"Efterklaringstanke, Konstruktioner",2013,60,6624546,110409.1,"kr."]
[null,"Efterklaringstanke, Mek/El",2013,20,8280682,414034.1,"kr."]
[null,"Efterklaringstanke, SRO",2013,10,1656136,165613.6,"kr."]
[null,"Ledningsnet = Ø 200 mm",2013,75,43396154,578615.38666666672,"kr."]
[null,"Ø 200 mm < Ledningsnet = Ø 500 mm",2013,75,26527648,353701.97333333333,"kr."]
[null,"Ø 500 mm < Ledningsnet = Ø 800 mm",2013,75,49072765,654303.53333333333,"kr."]
[null,"Ø 1200 mm < Ledningsnet = Ø 1600 mm",2013,75,252000,3360,"kr."]
[null,"Ø 800 mm < Ledningsnet = Ø 1000 mm",2013,75,463283,6177.1066666666666,"kr."]
[null,"Ø 1000 mm < Ledningsnet = Ø 1200 mm",2013,75,409273,5456.9733333333334,"kr."]
[null,"Brønde",2013,75,6240085,83201.133333333331,"kr."]
[null,"Stik",2013,75,5700364,76004.853333333333,"kr."]
[null,"Pumpestationer i brønde (< 6,25 m2), Konstruktioner",2013,50,641050,12821,"kr."]
[null,"Pumpestationer i brønde (< 6,25 m2), Mek/EL",2013,20,728229,36411.449999999997,"kr."]
[null,"Pumpestationer i brønde (< 6,25 m2), SRO",2013,10,2771700,277170,"kr."]
[null,"Pumpestationer m. overbygning (< 20 m2), Konstruktioner",2013,50,4813850,96277,"kr."]
[null,"Pumpestationer m. overbygning (< 20 m2), Mek/EL",2013,20,900000,45000,"kr."]
[null,"Pumpestationer m. overbygning (< 20 m2), SRO",2013,10,150000,15000,"kr."]
[null,"Kælder",2013,75,2000000,26666.666666666668,"kr."]
[null,"Pumpeinstallation Miljøklasse A (100-300 l/s) - Mek/EL",2013,20,3613234,180661.7,"kr."]
[null,"Pumpeinstallation Miljøklasse A (100-300 l/s) - SRO",2013,10,124370,12437,"kr."]
[null,"Forsinkelsesbassiner, lukkede uden automatisk rensning og SRO Miljøklasse B (mindre end 1.000 m3)",2013,50,670000,13400,"kr."]
[null,"Forsinkelsesbassiner, lukkede med automatisk rensning og SRO Miljøklasse A (500-1.000 m3) - Konstruktioner",2013,75,5070758,67610.106666666674,"kr."]
[null,"Jordbassin Klasse B",2013,50,4799641,95992.82,"kr."]
[null,"Indløb-/udløbsarrangement",2013,75,170551,2274.0133333333333,"kr."]
[null,"Administrationbygninger",2013,75,8544218,113922.90666666666,"kr."]
[null,"Værksteder, garager",2013,75,8544218,113922.90666666666,"kr."]
[null,"Køretøjer, små lastvogne (< 3.500 kg.)",2013,5,1118489,223697.8,"kr."]
[null,"Køretøjer, entreprenørmaskiner",2013,5,2056097,411219.4,"kr."]
[null,"Tillæg for 2013 ",null,null,null,{"$f":"SUM(F8:F45)","v":6727337.4633333348},"kr."]
[null,"Tillæg for 2010 - 2012",null,null,null,968271.64333333331,"kr."]
[null,"Samlet tillæg for gennemførte investeringer",null,null,null,{"$f":"F46+F47","v":7695609.1066666683},"kr."]

{"sheet":"6. Korrektion investeringer","index":5,"n_rows":10,"n_cols":4,"rows_kept":10,"cut":false,"hidden":false,"merged":[[3,1,3,3]]}
[{"$f":"'5. Gennemførte investeringer'!A1","v":"Mariagerfjord spildevand A/S"}]
[]
[]
[null,"Fane 6. Korrektion af tillæg for planlagte investeringer"]
[]
[null,"Korrektion af tillæg for planlagte investeringer vedr. 2013"]
[null,"Tillæg for planlagte investeringer i 2013 i prisloft 2013",6414644,"kr."]
[null,"Tillæg for planlagte investeringer i 2013 i prisloft 2014",6290667,"kr."]
[null,"Selskabets faktiske afskrivninger på gennemførte investeringer i 2013",{"$f":"'5. Gennemførte investeringer'!F46","v":6727337.4633333348},"kr."]
[null,"Korrektion af tillæg for planlagte investeringer vedr. 2013",{"$f":"C9-C7+C9-C8","v":749363.92666666955},"kr."]

{"sheet":"7. Planlagte investeringer","index":6,"n_rows":25,"n_cols":7,"rows_kept":25,"cut":false,"hidden":false,"merged":[[6,5,6,6],[3,1,3,6]]}
[{"$f":"'6. Korrektion investeringer'!A1","v":"Mariagerfjord spildevand A/S"}]
[]
[]
[null,"Fane 7. Planlagte investeringer "]
[]
[null,"Tillæg for planlagte investeringer i 2014 og 2015"]
[null,"Beskrivelse af investeringen   ","Årstal ","Std. levetid (år)   ","Anskaffelses-pris (kr.)   ","Afskrivning"]
[null,"Jordbassin Klasse B",2014,50,500000,{"$f":"E8/D8","v":10000},"kr."]
[null,"Ø 200 mm < Ledningsnet = Ø 500 mm",2014,75,80800000,{"$f":"E9/D9","v":1077333.3333333333},"kr."]
[null,"Rådnetanke, slam, Konstruktioner",2014,60,8000000,{"$f":"E10/D10","v":133333.33333333334},"kr."]
[null,"Pumpeinstallation Miljøklasse A (300-600 l/s) - Mek/EL",2014,20,10000000,500000,"kr."]
[null,"Pumpestationer m. overbygning (< 20 m2), Konstruktioner",2014,50,30000000,600000,"kr."]
[null,"Ledningsnet = Ø 200 mm",2014,75,6600000,88000,"kr."]
[null,"Ledningsnet > Ø 1600 mm (rørbassiner og transportledninger)",2014,75,9200000,122666.66666666667,"kr."]
[null,"Pumpestationer m. overbygning (< 20 m2), Konstruktioner",2014,50,2500000,50000,"kr."]
[null,"Ø 200 mm < Ledningsnet = Ø 500 mm",2014,75,500000,6666.666666666667,"kr."]
[null,"Ø 500 mm < Ledningsnet = Ø 800 mm",2014,75,500000,6666.666666666667,"kr."]
[null,"Pumpestationer m. overbygning (< 20 m2), Konstruktioner",2015,50,15000000,300000,"kr."]
[null,"Slutafvanding, slam - højteknologisk (centrifuger), Konstruktioner",2015,60,2100000,35000,"kr."]
[null,"Pumpeinstallation Miljøklasse A (100-300 l/s) - Mek/EL",2015,20,5000000,250000,"kr."]
[null,"Ø 200 mm < Ledningsnet = Ø 500 mm",2015,75,29000000,386666.66666666669,"kr."]
[null,"Ø 500 mm < Ledningsnet = Ø 800 mm",2015,75,10000000,133333.33333333334,"kr."]
[null,"Tillæg for 2014",null,null,null,{"$f":"SUMIF(C8:C22,\"2014\",F8:F22)","v":2594666.666666666},"kr."]
[null,"Tillæg for 2015",null,null,null,{"$f":"SUMIF(C8:C22,\"2015\",F8:F22)","v":1105000},"kr."]
[null,"Tillæg i alt",null,null,null,{"$f":"F23+F24","v":3699666.666666666},"kr."]

{"sheet":"8. 1-1 omkostninger","index":7,"n_rows":25,"n_cols":4,"rows_kept":25,"cut":false,"hidden":false,"merged":[[3,1,3,3],[15,1,15,3],[21,1,21,3]]}
[{"$f":"'7. Planlagte investeringer'!A1","v":"Mariagerfjord spildevand A/S"}]
[]
[]
[null,"Fane 8. 1:1 omkostninger"]
[]
[null,"Tillæg for budgetterede 1:1 omkostninger i 2015"]
[null,"Betaling til Forsyningssekretariatet",33000,"kr."]
[null,"Spildevandsafgift",900000,"kr."]
[null,"Køb af varer og tjenesteydelser hos et andet prisloftreguleret vandselskab",200000,"kr."]
[null,"Ejendomsskatter",25000,"kr."]
[null,"Tillæg i alt ",{"$f":"SUM(C7:C10)","v":1158000},"kr."]
[]
[]
[]
[]
[null,"Tillæg for budgetterede nødvendige udgifter til revisorerklæringer samt ordinært medlemskab af DANVA og FVD i 2015"]
[null,"Betaling for ordinært medlemskab af DANVA/FVD",105000,"kr."]
[null,"Betaling for revisorerklæringer",25000,"kr."]
[null,"Tillæg i alt ",{"$f":"SUM(C17:C18)","v":130000},"kr."]
[]
[]
[null,"Korrektion af tillæg for faktiske 1:1 omkostninger (inkl. revisorerklæringer og ordinært medlemskab af DANVA/FVD) i 2013"]
[null,"Selskabets faktiske 1:1 omkostninger mv. i 2013, jf. reguleringsregnskabet",2161660,"kr."]
[null,"Tillæg for budgetterede 1:1 omkostninger mv. i prisloft 2013",1532000,"kr."]
[null,"Korrektion af tillæg for budgetterede 1:1 omkostninger mv. i 2013",{"$f":"C23-C24","v":629660},"kr."]

{"sheet":"9. Miljø- og servicemål","index":8,"n_rows":15,"n_cols":4,"rows_kept":15,"cut":false,"hidden":false,"merged":[[3,1,3,3]]}
[{"$f":"'8. 1-1 omkostninger'!A1","v":"Mariagerfjord spildevand A/S"}]
[]
[]
[null,"Fane 9. Driftsomkostninger til miljø- og servicemål "]
[]
[null,"Tillæg for budgetterede driftsomkostninger til miljø- og servicemål i 2015"]
[null,"Skærpede rensningskrav",150000,"kr."]
[null,"Tillæg i alt",{"$f":"SUM(C7:C7)","v":150000},"kr."]
[]
[]
[]
[null,"Korrektion af tillæg for faktiske driftsomkostninger til miljø- og servicemål i 2013"]
[null,"Selskabets faktiske driftsomkostninger til miljø- og servicemål i 2013, jf. reguleringsregnskabet",112475,"kr."]
[null,"Tillæg for budgetterede driftsomkostninger til miljø- og servicemål i prisloft 2013",20000,"kr."]
[null,"Korrektion af tillæg for budgetterede driftsomkostninger til miljø- og servicemål i 2013",{"$f":"C13-C14","v":92475},"kr."]

{"sheet":"10. Klimatilpasning","index":9,"n_rows":16,"n_cols":4,"rows_kept":16,"cut":false,"hidden":false,"merged":[[3,1,3,3],[12,1,12,3],[6,1,6,3]]}
[{"$f":"'9. Miljø- og servicemål'!A1","v":"Mariagerfjord spildevand A/S"}]
[]
[]
[null,"Fane 10. Medfinansiering af klimatilpasningsprojekter"]
[]
[]
[null,"Tillæg for budgetterede omkostninger til medfinansiering af klimatilpasningsprojekter i 2015"]
[null,null,0,"kr."]
[null,"Tillæg i alt",{"$f":" SUM(C8:C8)","v":0},"kr."]
[]
[]
[]
[null,"Korrektion af tillæg for faktiske omkostninger til medfinansiering af klimatilpasningsprojekter i 2013"]
[null,"Selskabets faktiske driftsomkostninger til klimatilpasningsprojekter i 2013, jf. reguleringsregnskabet",null,"kr."]
[null,"Tillæg for budgetterede driftsomkostninger til klimatilpasningsprojekter i prisloft 2013",null,"kr."]
[null,"Korrektion af tillæg for budgetterede omkostninger til klimatilpasningsprojekter i 2013",{"$f":"C14-C15","v":0},"kr."]

{"sheet":"11. Nettofinansielle poster","index":10,"n_rows":16,"n_cols":4,"rows_kept":16,"cut":false,"hidden":false,"merged":[[3,1,3,3]]}
[{"$f":"'10. Klimatilpasning'!A1","v":"Mariagerfjord spildevand A/S"}]
[]
[]
[null,"Fane 11. Nettofinansielle poster"]
[]
[null,"Tillæg for budgetterede nettofinansielle poster i 2015"]
[null,"Budgetterede renteudgifter og gebyrer i 2015",14400000,"kr."]
[null,"Budgetterede renteindtægter i 2015",100000,"kr."]
[null,"Tillæg/fradrag i alt",{"$f":"C7-C8","v":14300000},"kr."]
[]
[]
[]
[null,"Korrektion af tillæg for faktiske nettofinansielle poster i 2013"]
[null,"Selskabets faktiske nettofinansielle poster i 2013, jf. reguleringsregnskabet",3909349,"kr."]
[null,"Tillæg for budgetterede nettofinansielle poster i prisloft 2013",8300000,"kr."]
[null,"Korrektion af tillæg for budgetterede nettofinansielle poster i 2013",{"$f":"C14-C15","v":-4390651},"kr."]

{"sheet":"12. Over- eller underdækning","index":11,"n_rows":11,"n_cols":4,"rows_kept":11,"cut":false,"hidden":false,"merged":[[3,1,3,3]]}
[{"$f":"'11. Nettofinansielle poster'!A1","v":"Mariagerfjord spildevand A/S"}]
[]
[]
[null,"Fane 12. Over- eller underdækning til og med 2010"]
[]
[null,"Tillæg/fradrag for over- eller underdækning til og med 2010"]
[null,"Opgjort over- eller underdækning per 31. december 2010",-51599164,"kr."]
[null,"Heraf beløb indregnet i prislofterne for 2011 - 2014",-19360681.015873015,"kr."]
[null,"Endnu ikke indregnet over- eller underdækning",{"$f":"C7-C8","v":-32238482.984126985},"kr."]
[null,"Resterende indregningsperiode (fastsat i prisloftet for 2012)",6,"år"]
[null,"Tillæg/fradrag i alt",{"$f":"IF(C7=0,0,C9/C10)","v":-5373080.4973544972},"kr."]

{"sheet":"13. Kontrol med indtægtsrammen","index":12,"n_rows":38,"n_cols":12,"rows_kept":38,"cut":false,"hidden":false,"merged":[[3,1,3,5],[30,1,30,4],[5,1,5,5]]}
[{"$f":"'12. Over- eller underdækning'!A1","v":"Mariagerfjord spildevand A/S"}]
[]
[]
[null,"Fane 13. Korrektion for overholdelse af indtægtsrammen i prisloftet for 2013"]
[]
[null,"Samlet opgørelse vedrørende overholdelse af indtægtsrammen i prisloftet for 2013"]
[null,"Indtægtsramme i prisloftet for 2013",null,null,90109130.405520216,"kr."]
[null,"Ikke anvendt likviditet vedrørende investeringer i 2013"]
[null,"Tillæg for historiske investeringer ",52645408.427316986,"kr."]
[null,"Tillæg for gennemførte investeringer i 2011",330532,"kr."]
[null,"Korrektion af tillæg for planlagte investeringer i 2011",-557223,"kr."]
[null,"Tillæg for planlagte investeringer i 2012 og 2013",7377511,"kr."]
[null,"Indtægter fra tilslutningsbidrag",3734810,"kr."]
[null,"Indtægter fra salg af anlægsaktiver",0,"kr."]
[null,"Erstatninger vedr. anlægsaktiver mv.",0,"kr."]
[null,"Ekstraordinær effektiviseringsgevinst anvendt til investeringer",0,"kr."]
[null,"Udgifter til investeringer",-36541632,"kr."]
[null,"Ikke anvendt likviditet vedr. investeringer i alt",{"$f":"SUM(C9:C17)","v":26989406.427316986},"kr.",{"$f":"IF(C18<0,0,-C18)","v":-26989406.427316986},"kr."]
[null,"Ekstraordinære effektiviseringsgevinster anvendt til takstnedsættelse"]
[null,"Ekstraordinær effektiviseringsgevinst anvendt til takstnedsættelse",0,"kr.",{"$f":"-C20","v":0},"kr."]
[null,"Korrektion af ikke opkrævet tillæg fra 2011 i prisloft 2013"]
[null,"Korrektion af ikke opkrævet tillæg fra 2011 i prisloft 2013",0,"kr.",{"$f":"-C22","v":0},"kr."]
[null,"Indtægter fra primære aktiviteter mv."]
[null,"Indtægter fra kubikmetertakster, faste takster, særbidrag, målergebyrer samt andre takster og gebyrer",60818204,"kr."]
[null,"Andre indtægter i prisloftåret, som selskabet har opnået i forbindelse med eller som følge af selskabets primære aktiviteter",0,"kr."]
[null,"Indtægter fra primære aktiviteter mv. i alt",{"$f":"SUM(C24:C25)","v":60818204},"kr.",{"$f":"-C26","v":-60818204},"kr."]
[null,"Tillæg/fradrag i prisloftet for 2015 i alt",null,null,{"$f":"E7+E18+E20+E22+E26","v":2301519.9782032296},"kr."]
[]
[]
[]
[null,"Oversigt over ekstraordinære effektiviseringsgevinster"]
[]
[null,null,2012,null,2013,null,2014,null,2015,null,2016]
[null,"Indhentet ekstraordinær effektiviseringsgevinst",69344,"kr.",0,"kr.",null,"kr.",null,"kr.",null,"kr."]
[null,"Gevinst anvendt til investeringer",69344,"kr.",0,"kr.",null,"kr.",null,"kr.",null,"kr."]
[null,"Gevinst anvendt til takstnedsættelse",0,"kr.",0,"kr.",null,"kr.",null,"kr.",null,"kr."]
[null,"Korrektion for  effektiviseringsgevinst der ikke er anvendt inden 4 år",0,"kr.",0,"kr.",null,"kr.",null,"kr.",{"$f":"IF(C38>SUM(E35:I36),C38-SUM(E35:I36),0)*-1","v":0},"kr."]
[null,"Resterende gevinst",{"$f":"C34-C35-C36","v":0},"kr.",{"$f":"C38+E34-E35-E36","v":0},"kr.",{"$f":"E38+G34-G35-G36","v":0},"kr.",{"$f":"G38+I34-I35-I36","v":0},"kr.",{"$f":"K34-K35-K36+K37+I38","v":0},"kr."]